[Event "FIDE Grand Swiss 2023"]
[Site "Villa Marina, Douglas, Isle of Man"]
[Date "2023.11.04"]
[Round "10.48"]
[White "Wagner, Dennis"]
[Black "Iturrizaga Bonelli, Eduardo"]
[Result "1/2-1/2"]
[WhiteElo "2589"]
[BlackElo "2615"]
[EventDate "2023.10.25"]
[ECO "D12"]
[PlyCount "62"]
[BlackClock "00:13:51"]
[BlackFideId "3901211"]
[TimeControl "40/100 + 20/50 + 15 + 30s/move"]
[WhiteClock "00:23:51"]
[WhiteFideId "24650684"]

1.d4 {[%clk 01:40:56][%emt 00:00:03]} 1...Nf6 {[%clk 01:40:54][%emt 00:00:07]} 
2.c4 {[%clk 01:41:21][%emt 00:00:05]} 2...c6 {[%clk 01:41:10][%emt 00:00:14]} 
3.Nc3 {[%clk 01:34:53][%emt 00:06:58]} 3...d5 {[%clk 01:40:29][%emt 00:01:11]} 
4.e3 {[%clk 01:35:19][%emt 00:00:04]} 4...Bf5 {[%clk 01:40:54][%emt 00:00:04]} 
5.Nf3 {[%clk 01:34:32][%emt 00:01:18]} 5...e6 {[%clk 01:41:18][%emt 00:00:06]} 
6.Nh4 {[%clk 01:34:32][%emt 00:00:31]} 6...Be4 {[%clk 01:41:42][%emt 00:00:06]} 
7.f3 {[%clk 01:34:48][%emt 00:00:13]} 7...Bg6 {[%clk 01:42:05][%emt 00:00:07]} 
8.Qb3 {[%clk 01:34:05][%emt 00:01:13]} 8...Qc7 {[%clk 01:42:27][%emt 00:00:08]} 
9.Bd2 {[%clk 01:34:06][%emt 00:00:29]} 9...Be7 {[%clk 01:42:11][%emt 00:00:46]} 
10.cxd5 {[%clk 01:32:46][%emt 00:01:50]} 10...cxd5 {[%clk 01:41:49][%emt
00:00:52]} 11.Nxg6 {[%clk 01:32:51][%emt 00:00:25]} 11...hxg6 {[%clk
01:42:13][%emt 00:00:06]} 12.O-O-O {[%clk 01:33:14][%emt 00:00:07]} 12...Nc6 
{[%clk 01:41:47][%emt 00:00:56]} 13.Kb1 {[%clk 01:33:36][%emt 00:00:08]} 
13...a6 {[%clk 01:31:14][%emt 00:11:03]} 14.Rc1 {[%clk 01:31:31][%emt 00:02:35]} 
14...Nd7 {[%clk 01:24:20][%emt 00:07:24]} 15.Bd3 {[%clk 01:26:25][%emt
00:05:36]} 15...Na5 {[%clk 01:11:14][%emt 00:13:36]} 16.Nxd5 {[%clk
01:14:44][%emt 00:12:11]} 16...Qxc1+ {[%clk 01:09:38]} ( 16...Qc4 {[%emt
00:02:06]} 17.Rc2 Qxc2+ {[%clk 01:09:38]} ) 17.Bxc1 {[%clk 01:15:06][%emt
00:02:13]} 17...Nxb3 {[%clk 01:10:04][%emt 00:00:05]} 18.Nc7+ {[%clk
01:15:30][%emt 00:00:06]} 18...Kd8 {[%clk 01:10:29][%emt 00:00:05]} 19.Nxa8 
{[%clk 01:15:54][%emt 00:00:05]} 19...Na5 {[%clk 01:10:57][%emt 00:00:03]} 
20.e4 {[%clk 01:10:33][%emt 00:05:51]} 20...Nc6 {[%clk 01:09:15][%emt 00:02:12]} 
21.Bf4 {[%clk 01:03:49][%emt 00:07:14]} 21...Nxd4 {[%clk 01:07:50][%emt
00:01:55]} 22.Bc7+ {[%clk 01:02:59][%emt 00:01:20]} 22...Ke8 {[%clk
01:01:17][%emt 00:07:03]} 23.Nb6 {[%clk 00:52:04][%emt 00:11:24]} 23...Bd8 
{[%clk 00:26:19][%emt 00:35:29]} 24.Nxd7 {[%clk 00:51:07][%emt 00:01:27]} 
24...Bxc7 {[%clk 00:23:48][%emt 00:03:01]} 25.Nc5 {[%clk 00:51:32][%emt
00:00:04]} 25...b6 {[%clk 00:24:17][%emt 00:00:03]} 26.Nxa6 {[%clk
00:51:17][%emt 00:00:45]} 26...Bxh2 {[%clk 00:24:42][%emt 00:00:04]} 27.Nc7+ 
{[%clk 00:39:31][%emt 00:12:16]} 27...Kd7 {[%clk 00:22:11][%emt 00:03:01]} 
28.Nb5 {[%clk 00:39:38][%emt 00:00:23]} 28...Nc6 {[%clk 00:15:11][%emt
00:07:30]} 29.a3 {[%clk 00:34:56][%emt 00:05:12]} 29...g5 {[%clk 00:14:08][%emt
00:01:32]} 30.b4 {[%clk 00:34:12][%emt 00:01:15]} 30...Rh4 {[%clk 00:14:04][%emt
00:00:34]} 31.Rd1 {[%clk 00:27:33][%emt 00:07:09]} 31...Be5 {[%clk
00:13:51][%emt 00:00:42]} 1/2-1/2

[Event "FIDE Grand Swiss 2023"]
[Site "Villa Marina, Douglas, Isle of Man"]
[Date "2023.11.04"]
[Round "10.49"]
[White "Karthikeyan, Murali"]
[Black "Lazavik, Denis"]
[Result "1/2-1/2"]
[WhiteElo "2611"]
[BlackElo "2560"]
[EventDate "2023.10.25"]
[ECO "C65"]
[PlyCount "87"]
[BlackFideId "13515110"]
[TimeControl "40/100 + 20/50 + 15 + 30s/move"]
[WhiteFideId "5074452"]

1.e4 {[%clk 01:40:58][%emt 00:00:02]} 1...e5 {[%clk 01:40:48][%emt 00:00:11]} 
2.Nf3 {[%clk 01:41:21][%emt 00:00:07]} 2...Nc6 {[%clk 01:41:06][%emt 00:00:12]} 
3.Bb5 {[%clk 01:41:43][%emt 00:00:09]} 3...Nf6 {[%clk 01:41:20][%emt 00:00:15]} 
4.d3 {[%clk 01:41:40][%emt 00:00:33]} 4...Bc5 {[%clk 01:41:33][%emt 00:00:17]} 
5.O-O {[%clk 01:40:54][%emt 00:01:15]} 5...Nd4 {[%clk 01:41:38][%emt 00:00:25]} 
6.Be3 {[%clk 01:40:37][%emt 00:00:49]} 6...Nxf3+ {[%clk 01:39:49][%emt
00:02:19]} 7.Qxf3 {[%clk 01:41:01][%emt 00:00:06]} 7...Bxe3 {[%clk
01:39:44][%emt 00:00:34]} 8.Qxe3 {[%clk 01:41:25][%emt 00:00:06]} 8...c6 {[%clk
01:33:15][%emt 00:06:59]} 9.Bc4 {[%clk 01:41:32][%emt 00:00:24]} 9...O-O {[%clk
01:32:54][%emt 00:00:50]} 10.Bb3 {[%clk 01:41:51][%emt 00:00:11]} 10...d6 
{[%clk 01:29:56][%emt 00:03:28]} 11.Nd2 {[%clk 01:41:50][%emt 00:00:30]} 
11...a5 {[%clk 01:26:18][%emt 00:04:08]} 12.a4 {[%clk 01:41:03][%emt 00:01:18]} 
12...Be6 {[%clk 01:25:21][%emt 00:01:26]} 13.Bxe6 {[%clk 01:36:13][%emt
00:05:21]} 13...fxe6 {[%clk 01:25:44][%emt 00:00:06]} 14.c3 {[%clk
01:32:31][%emt 00:04:13]} 14...b5 {[%clk 01:17:15][%emt 00:08:59]} 15.g3 {[%clk
01:27:13][%emt 00:05:48]} 15...Qc7 {[%clk 01:12:31][%emt 00:05:13]} 16.h3 
{[%clk 01:17:30][%emt 00:10:14]} 16...Rab8 {[%clk 01:09:21][%emt 00:03:40]} 
17.Rfb1 {[%clk 00:59:12][%emt 00:18:49]} 17...b4 {[%clk 01:03:33][%emt
00:06:17]} 18.d4 {[%clk 00:54:11][%emt 00:05:32]} 18...Nd7 {[%clk 01:03:03][%emt
00:00:59]} 19.Re1 {[%clk 00:35:38][%emt 00:19:03]} 19...bxc3 {[%clk
00:58:14][%emt 00:05:19]} 20.bxc3 {[%clk 00:35:59][%emt 00:00:10]} 20...exd4 
{[%clk 00:58:22][%emt 00:00:21]} 21.cxd4 {[%clk 00:35:53][%emt 00:00:36]} 
21...Rb4 {[%clk 00:55:11][%emt 00:03:41]} 22.Rec1 {[%clk 00:33:13][%emt
00:03:11]} 22...Nb6 {[%clk 00:52:11][%emt 00:03:30]} 23.Rc2 {[%clk
00:32:37][%emt 00:01:06]} 23...Qd7 {[%clk 00:46:09][%emt 00:06:31]} 24.Rac1 
{[%clk 00:31:17][%emt 00:01:50]} 24...d5 {[%clk 00:45:30][%emt 00:01:09]} 25.e5 
{[%clk 00:23:02][%emt 00:08:46]} 25...Rxa4 {[%clk 00:43:39][%emt 00:02:20]} 
26.Rxc6 {[%clk 00:14:58][%emt 00:08:34]} 26...Nc4 {[%clk 00:43:20][%emt
00:00:50]} 27.Nxc4 {[%clk 00:15:21][%emt 00:00:07]} 27...Qxc6 {[%clk
00:43:41][%emt 00:00:08]} 28.Nb2 {[%clk 00:15:39][%emt 00:00:12]} 28...Rc4 
{[%clk 00:38:00][%emt 00:06:10]} 29.Nxc4 {[%clk 00:16:04][%emt 00:00:06]} 
29...dxc4 {[%clk 00:38:27][%emt 00:00:03]} 30.Qc3 {[%clk 00:16:22][%emt
00:00:12]} 30...Rc8 {[%clk 00:36:58][%emt 00:01:58]} 31.Qxa5 {[%clk
00:16:13][%emt 00:00:40]} 31...c3 {[%clk 00:37:15][%emt 00:00:13]} 32.Qa2 
{[%clk 00:16:23][%emt 00:00:21]} 32...c2 {[%clk 00:33:38][%emt 00:04:07]} 
33.Qb3 {[%clk 00:14:54][%emt 00:01:59]} 33...Kf7 {[%clk 00:29:21][%emt
00:04:46]} 34.f3 {[%clk 00:10:14][%emt 00:05:09]} 34...Qc3 {[%clk 00:27:56][%emt
00:01:56]} 35.Qxc3 {[%clk 00:10:40][%emt 00:00:05]} 35...Rxc3 {[%clk
00:28:20][%emt 00:00:05]} 36.Kf2 {[%clk 00:11:07][%emt 00:00:03]} 36...Ke7 
{[%clk 00:26:44][%emt 00:02:06]} 37.Ke2 {[%clk 00:10:23][%emt 00:01:14]} 
37...Kd7 {[%clk 00:26:39][%emt 00:00:35]} 38.h4 {[%clk 00:07:56][%emt 00:02:57]} 
38...h5 {[%clk 00:24:04][%emt 00:03:05]} 39.g4 {[%clk 00:05:09][%emt 00:03:17]} 
39...Kc6 {[%clk 00:18:28][%emt 00:06:06]} 40.Kd2 {[%clk 00:03:51][%emt
00:01:47]} 40...Rxf3 {[%clk 00:18:52][%emt 00:00:06]} 41.Rxc2+ {[%clk
00:04:11][%emt 00:00:11]} 41...Kd5 {[%clk 00:19:17][%emt 00:00:05]} 42.Rc7 
{[%clk 00:03:46][%emt 00:00:55]} 42...hxg4 {[%clk 00:19:29][%emt 00:00:18]} 
43.Rxg7 {[%clk 00:04:10][%emt 00:00:05]} 43...Kxd4 {[%clk 00:19:12][%emt
00:00:48]} 44.Rxg4+ {[%clk 00:04:34][%emt 00:00:06]} ( 44.Rxg4+ {[%clk 00:04:34]
[%emt 00:00:06]} 44...Kxe5 {[%emt 00:00:09]} ) 1/2-1/2

[Event "FIDE Grand Swiss 2023"]
[Site "Villa Marina, Douglas, Isle of Man"]
[Date "2023.11.04"]
[Round "10.50"]
[White "Gupta, Abhijeet"]
[Black "Krasenkow, Michal"]
[Result "0-1"]
[WhiteElo "2609"]
[BlackElo "2531"]
[EventDate "2023.10.25"]
[ECO "D30"]
[PlyCount "84"]
[BlackClock "01:02:06"]
[BlackFideId "1113100"]
[TimeControl "40/100 + 20/50 + 15 + 30s/move"]
[WhiteClock "00:46:52"]
[WhiteFideId "5010608"]

1.d4 {[%clk 01:40:51][%emt 00:00:08]} 1...d5 {[%clk 01:40:55][%emt 00:00:06]} 
2.c4 {[%clk 01:41:05][%emt 00:00:16]} 2...e6 {[%clk 01:41:17][%emt 00:00:07]} 
3.Nf3 {[%clk 01:41:26][%emt 00:00:10]} 3...c6 {[%clk 01:41:43][%emt 00:00:05]} 
4.g3 {[%clk 01:41:47][%emt 00:00:08]} 4...dxc4 {[%clk 01:42:05][%emt 00:00:09]} 
5.Bg2 {[%clk 01:42:12][%emt 00:00:03]} 5...b5 {[%clk 01:42:29][%emt 00:00:06]} 
6.O-O {[%clk 01:42:20][%emt 00:00:22]} 6...Bb7 {[%clk 01:42:18][%emt 00:00:42]} 
7.Ne5 {[%clk 01:42:22][%emt 00:00:28]} 7...Nf6 {[%clk 01:42:10][%emt 00:00:38]} 
8.a4 {[%clk 01:42:23][%emt 00:00:29]} 8...a6 {[%clk 01:42:03][%emt 00:00:37]} 
9.b3 {[%clk 01:40:44][%emt 00:02:09]} 9...cxb3 {[%clk 01:42:27][%emt 00:00:06]} 
10.Qxb3 {[%clk 01:41:07][%emt 00:00:07]} 10...Qxd4 {[%clk 01:42:38][%emt
00:00:19]} 11.Bb2 {[%clk 01:41:33][%emt 00:00:04]} 11...Qb4 {[%clk
01:42:43][%emt 00:00:25]} 12.Qc2 {[%clk 01:41:26][%emt 00:00:36]} 12...Qc5 
{[%clk 01:42:35][%emt 00:00:38]} 13.Qd3 {[%clk 01:32:16][%emt 00:09:40]} 
13...Be7 {[%clk 01:35:07][%emt 00:07:58]} 14.Nd2 {[%clk 01:23:37][%emt
00:09:10]} 14...O-O {[%clk 01:21:51][%emt 00:13:46]} 15.Ne4 {[%clk
01:19:43][%emt 00:04:23]} 15...Qb6 {[%clk 01:19:48][%emt 00:02:33]} 16.Ng5 
{[%clk 01:16:14][%emt 00:03:59]} 16...h6 {[%clk 01:20:08][%emt 00:00:10]} 
17.Ngxf7 {[%clk 01:15:01][%emt 00:01:44]} 17...Rxf7 {[%clk 01:20:21][%emt
00:00:17]} 18.Qg6 {[%clk 01:11:55][%emt 00:03:37]} 18...Rf8 {[%clk
01:20:29][%emt 00:00:22]} 19.Ng4 {[%clk 01:01:22][%emt 00:11:02]} 19...c5 
{[%clk 01:19:21][%emt 00:01:38]} 20.Nxh6+ {[%clk 00:59:53][%emt 00:01:59]} 
20...Kh8 {[%clk 01:19:38][%emt 00:00:13]} 21.Nf7+ {[%clk 00:59:33][%emt
00:00:50]} 21...Rxf7 {[%clk 01:10:42][%emt 00:09:25]} 22.Bxb7 {[%clk
00:57:10][%emt 00:02:54]} 22...Qxb7 {[%clk 01:10:13][%emt 00:00:59]} 23.Qxf7 
{[%clk 00:57:36][%emt 00:00:04]} 23...Nc6 {[%clk 01:08:14][%emt 00:02:29]} 
24.Bxf6 {[%clk 00:52:03][%emt 00:06:02]} 24...gxf6 {[%clk 01:08:29][%emt
00:00:16]} 25.axb5 {[%clk 00:52:12][%emt 00:00:22]} 25...axb5 {[%clk
01:03:24][%emt 00:05:34]} 26.Rxa8+ {[%clk 00:51:46][%emt 00:00:56]} 26...Qxa8 
{[%clk 01:03:53][%emt 00:00:02]} 27.Qxe6 {[%clk 00:52:09][%emt 00:00:06]} 
27...c4 {[%clk 00:58:08][%emt 00:06:15]} 28.Qf7 {[%clk 00:39:43][%emt 00:12:56]} 
28...c3 {[%clk 00:53:13][%emt 00:05:25]} 29.h4 {[%clk 00:25:50][%emt 00:14:23]} 
29...b4 {[%clk 00:50:44][%emt 00:02:59]} 30.Kh2 {[%clk 00:25:39][%emt 00:00:41]} 
30...Qd8 {[%clk 00:46:39][%emt 00:04:35]} 31.Qh5+ {[%clk 00:20:11][%emt
00:05:58]} 31...Kg7 {[%clk 00:46:54][%emt 00:00:15]} 32.Qg4+ {[%clk
00:20:34][%emt 00:00:07]} 32...Kf8 {[%clk 00:46:35][%emt 00:00:48]} 33.Qe4 
{[%clk 00:19:58][%emt 00:01:06]} 33...Ne5 {[%clk 00:41:46][%emt 00:05:20]} 
34.Ra1 {[%clk 00:19:39][%emt 00:00:49]} 34...Kg7 {[%clk 00:40:25][%emt
00:01:51]} 35.h5 {[%clk 00:14:12][%emt 00:05:57]} 35...Qb6 {[%clk 00:33:56][%emt
00:06:59]} 36.Ra8 {[%clk 00:03:20][%emt 00:11:22]} 36...Bd8 {[%clk
00:22:20][%emt 00:12:06]} 37.e3 {[%clk 00:02:11][%emt 00:01:39]} 37...b3 {[%clk
00:21:19][%emt 00:01:30]} 38.Qd5 {[%clk 00:00:53][%emt 00:01:49]} 38...b2 
{[%clk 00:13:15][%emt 00:08:34]} 39.Rxd8 {[%clk 00:01:14][%emt 00:00:09]} 
39...b1=Q {[%clk 00:13:18][%emt 00:00:26]} 40.Qg8+ {[%clk 00:01:35][%emt
00:00:09]} 40...Kh6 {[%clk 00:13:47][%emt 00:00:02]} 41.Qf8+ {[%clk
00:48:49][%emt 00:03:16]} 41...Kxh5 {[%clk 01:03:30][%emt 00:00:48]} 42.Qh8+ 
{[%clk 00:49:05][%emt 00:00:13]} 42...Kg4 {[%clk 01:02:06][%emt 00:01:54]} 0-1

[Event "FIDE Grand Swiss 2023"]
[Site "Villa Marina, Douglas, Isle of Man"]
[Date "2023.11.04"]
[Round "10.51"]
[White "Mareco, Sandro"]
[Black "Royal, Shreyas"]
[Result "1/2-1/2"]
[WhiteElo "2606"]
[BlackElo "2407"]
[EventDate "2023.10.25"]
[ECO "B51"]
[PlyCount "67"]
[BlackClock "00:04:44"]
[BlackFideId "448869"]
[TimeControl "40/100 + 20/50 + 15 + 30s/move"]
[WhiteClock "00:01:21"]
[WhiteFideId "112275"]

1.e4 {[%clk 01:40:58][%emt 00:00:01]} 1...c5 {[%clk 01:40:54][%emt 00:00:07]} 
2.Nf3 {[%clk 01:41:23][%emt 00:00:04]} 2...d6 {[%clk 01:41:18][%emt 00:00:06]} 
3.Bb5+ {[%clk 01:41:32][%emt 00:00:23]} 3...Nd7 {[%clk 01:41:40][%emt 00:00:07]} 
4.a4 {[%clk 01:41:57][%emt 00:00:05]} 4...Nf6 {[%clk 01:41:23][%emt 00:00:47]} 
5.Nc3 {[%clk 01:42:21][%emt 00:00:06]} 5...a6 {[%clk 01:41:07][%emt 00:00:46]} 
6.Be2 {[%clk 01:42:46][%emt 00:00:05]} 6...g6 {[%clk 01:41:20][%emt 00:00:17]} 
7.O-O {[%clk 01:43:03][%emt 00:00:13]} 7...Bg7 {[%clk 01:41:34][%emt 00:00:15]} 
8.a5 {[%clk 01:42:37][%emt 00:00:56]} 8...O-O {[%clk 01:41:37][%emt 00:00:27]} 
9.d3 {[%clk 01:42:19][%emt 00:00:48]} 9...b5 {[%clk 01:41:13][%emt 00:00:54]} 
10.axb6 {[%clk 01:42:43][%emt 00:00:07]} 10...a5 {[%clk 01:41:25][%emt
00:00:18]} 11.Bf4 {[%clk 01:36:28][%emt 00:06:45]} 11...Bb7 {[%clk
01:36:03][%emt 00:05:51]} 12.Qd2 {[%clk 01:35:09][%emt 00:01:49]} 12...Bc6 
{[%clk 01:32:55][%emt 00:03:38]} 13.Bh6 {[%clk 01:11:38][%emt 00:24:01]} 
13...Qxb6 {[%clk 01:27:51][%emt 00:05:35]} 14.Ra2 {[%clk 01:11:30][%emt
00:00:39]} 14...Rfb8 {[%clk 01:20:29][%emt 00:07:51]} 15.Rfa1 {[%clk
00:56:59][%emt 00:15:01]} 15...a4 {[%clk 00:58:53][%emt 00:22:06]} 16.Bxg7 
{[%clk 00:54:01][%emt 00:03:28]} 16...Kxg7 {[%clk 00:59:15][%emt 00:00:08]} 
17.h3 {[%clk 00:54:27][%emt 00:00:04]} 17...e5 {[%clk 00:57:50][%emt 00:01:56]} 
18.Bd1 {[%clk 00:41:54][%emt 00:13:02]} 18...Qc7 {[%clk 00:44:59][%emt
00:13:20]} 19.Qe3 {[%clk 00:34:18][%emt 00:08:07]} 19...Rb4 {[%clk
00:39:21][%emt 00:06:08]} 20.b3 {[%clk 00:31:24][%emt 00:03:25]} 20...axb3 
{[%clk 00:38:23][%emt 00:01:26]} 21.Rxa8 {[%clk 00:30:15][%emt 00:01:40]} 
21...d5 {[%clk 00:27:31][%emt 00:11:22]} 22.R1a7 {[%clk 00:20:47][%emt
00:09:58]} 22...Qd6 {[%clk 00:26:07][%emt 00:01:54]} 23.Rc8 {[%clk
00:14:20][%emt 00:06:57]} 23...d4 {[%clk 00:24:11][%emt 00:02:26]} 24.Qe1 
{[%clk 00:13:19][%emt 00:01:30]} 24...dxc3 {[%clk 00:23:08][%emt 00:01:34]} 
25.cxb3 {[%clk 00:13:45][%emt 00:00:04]} 25...Bb7 {[%clk 00:22:54][%emt
00:00:44]} 26.Rd8 {[%clk 00:06:40][%emt 00:07:35]} 26...Qxd3 {[%clk
00:15:02][%emt 00:08:21]} 27.Nxe5 {[%clk 00:07:04][%emt 00:00:07]} 27...Qb1 
{[%clk 00:15:27][%emt 00:00:05]} 28.Nxd7 {[%clk 00:05:47][%emt 00:01:47]} 
28...c2 {[%clk 00:09:26][%emt 00:06:31]} 29.Nxc5 {[%clk 00:05:38][%emt
00:00:39]} 29...Bd5 {[%clk 00:04:15][%emt 00:05:41]} 30.Ne6+ {[%clk
00:00:47][%emt 00:05:21]} 30...Bxe6 {[%clk 00:04:39][%emt 00:00:06]} 31.Qxb4 
{[%clk 00:01:13][%emt 00:00:04]} 31...cxd1=R+ {[%clk 00:04:25][%emt 00:00:44]} 
32.Rxd1 {[%clk 00:01:37][%emt 00:00:05]} 32...Qxd1+ {[%clk 00:04:48][%emt
00:00:07]} 33.Kh2 {[%clk 00:02:02][%emt 00:00:05]} 33...Qxb3 {[%clk
00:04:46][%emt 00:00:33]} 34.Qxb3 {[%clk 00:01:21] [%emt 00:01:12]} 1/2-1/2

[Event "FIDE Grand Swiss 2023"]
[Site "Villa Marina, Douglas, Isle of Man"]
[Date "2023.11.04"]
[Round "10.52"]
[White "Adhiban, B."]
[Black "Samunenkov, Ihor"]
[Result "1-0"]
[WhiteElo "2551"]
[BlackElo "2531"]
[EventDate "2023.10.25"]
[ECO "C43"]
[PlyCount "73"]
[BlackClock "00:00:47"]
[BlackFideId "14187086"]
[TimeControl "40/100 + 20/50 + 15 + 30s/move"]
[WhiteClock "00:07:44"]
[WhiteFideId "5018471"]

1.e4 {[%clk 01:40:57][%emt 00:00:02]} 1...e5 {[%clk 01:40:54][%emt 00:00:06]} 
2.Nf3 {[%clk 01:40:58][%emt 00:00:29]} 2...Nf6 {[%clk 01:41:16][%emt 00:00:08]} 
3.d4 {[%clk 01:39:57][%emt 00:01:31]} 3...Nxe4 {[%clk 01:41:33][%emt 00:00:14]} 
4.dxe5 {[%clk 01:40:19][%emt 00:00:08]} 4...d5 {[%clk 01:41:39][%emt 00:00:23]} 
5.Nbd2 {[%clk 01:40:41][%emt 00:00:08]} 5...Qd7 {[%clk 01:41:58][%emt 00:00:11]} 
6.Bd3 {[%clk 01:41:04][%emt 00:00:06]} 6...Nc5 {[%clk 01:42:02][%emt 00:00:27]} 
7.Be2 {[%clk 01:41:33][%emt 00:00:02]} 7...Ne6 {[%clk 01:42:12][%emt 00:00:20]} 
8.Nf1 {[%clk 01:41:37][%emt 00:00:26]} 8...c5 {[%clk 01:41:45][%emt 00:00:56]} 
9.Ng3 {[%clk 01:40:30][%emt 00:01:37]} 9...Nc6 {[%clk 01:42:03][%emt 00:00:12]} 
10.O-O {[%clk 01:40:49][%emt 00:00:11]} 10...g6 {[%clk 01:42:13][%emt 00:00:21]} 
11.c4 {[%clk 01:33:23][%emt 00:07:55]} 11...dxc4 {[%clk 01:42:04][%emt
00:00:39]} 12.Bxc4 {[%clk 01:21:57][%emt 00:11:56]} 12...Qxd1 {[%clk
01:25:41][%emt 00:16:53]} 13.Rxd1 {[%clk 01:22:23][%emt 00:00:04]} 13...Bg7 
{[%clk 01:25:56][%emt 00:00:14]} 14.Bb5 {[%clk 01:18:08][%emt 00:04:47]} 
14...Bd7 {[%clk 01:14:43][%emt 00:11:42]} 15.Ne4 {[%clk 01:09:01][%emt
00:09:38]} 15...Nxe5 {[%clk 01:04:16][%emt 00:10:57]} 16.Bxd7+ {[%clk
00:55:22][%emt 00:14:08]} 16...Nxd7 {[%clk 01:04:38][%emt 00:00:09]} 17.Nd6+ 
{[%clk 00:55:51][%emt 00:00:01]} 17...Ke7 {[%clk 01:01:17][%emt 00:03:50]} 
18.Nxf7 {[%clk 00:56:14][%emt 00:00:07]} 18...Rhf8 {[%clk 00:57:27][%emt
00:04:19]} 19.N3g5 {[%clk 00:52:51][%emt 00:03:54]} 19...Nxg5 {[%clk
00:27:28][%emt 00:30:29]} 20.Nxg5 {[%clk 00:53:12][%emt 00:00:10]} 20...h6 
{[%clk 00:18:33][%emt 00:09:24]} 21.Re1+ {[%clk 00:51:50][%emt 00:01:52]} 
21...Kd6 {[%clk 00:17:05][%emt 00:01:58]} 22.Re6+ {[%clk 00:43:26][%emt
00:08:54]} 22...Kd5 {[%clk 00:17:09][%emt 00:00:26]} 23.Rxg6 {[%clk
00:41:12][%emt 00:02:43]} 23...Bd4 {[%clk 00:16:27][%emt 00:01:12]} 24.Ne6 
{[%clk 00:30:16][%emt 00:11:26]} 24...Ne5 {[%clk 00:15:07][%emt 00:01:50]} 
25.Rxh6 {[%clk 00:22:12][%emt 00:08:35]} 25...Bxf2+ {[%clk 00:14:36][%emt
00:01:01]} 26.Kh1 {[%clk 00:22:26][%emt 00:00:16]} 26...Rf7 {[%clk
00:12:35][%emt 00:02:31]} 27.Nf4+ {[%clk 00:20:35][%emt 00:02:21]} 27...Kc4 
{[%clk 00:08:31][%emt 00:04:33]} 28.Bd2 {[%clk 00:19:50][%emt 00:01:16]} 
28...b6 {[%clk 00:07:39][%emt 00:01:22]} 29.Rf1 {[%clk 00:12:09][%emt 00:08:11]} 
29...Rd8 {[%clk 00:05:10][%emt 00:02:59]} 30.Bc1 {[%clk 00:10:44][%emt
00:01:55]} 30...Ng4 {[%clk 00:04:26][%emt 00:01:14]} 31.Re6 {[%clk
00:09:39][%emt 00:01:35]} 31...Bd4 {[%clk 00:04:19][%emt 00:00:36]} 32.g3 
{[%clk 00:07:59][%emt 00:02:10]} 32...Rh8 {[%clk 00:01:59][%emt 00:02:50]} 
33.h4 {[%clk 00:08:14][%emt 00:00:16]} 33...Rg8 {[%clk 00:01:00][%emt 00:01:29]} 
34.Kg2 {[%clk 00:08:25][%emt 00:00:19]} 34...Ne5 {[%clk 00:01:03][%emt
00:00:27]} 35.b3+ {[%clk 00:07:18][%emt 00:01:37]} 35...Kb5 {[%clk
00:01:30][%emt 00:00:03]} 36.Ne2 {[%clk 00:07:19][%emt 00:00:29]} 36...Rxf1 
{[%clk 00:01:12][%emt 00:00:48]} 37.Nxd4+ {[%clk 00:07:44][%emt 00:00:05]} 1-0